fUSD/lending_fUSD_20260322
["ID","MTS","AMOUNT","RATE_DAILY","PERIOD"]
[408731092,1774178120979,-494.45742982,0.00011573,2]
[408731093,1774178120989,-1928.00084781,0.00011573,2]
[408731094,1774178120998,-196.63862819,0.00011573,2]
[408731095,1774178121007,-445.59846565,0.00011573,2]
[408731096,1774178121016,-1587.93340582,0.00011599,2]
[408731097,1774178121025,-130.18968571,0.000116,4]
[408731098,1774178121045,-434.373074,0.000116,4]
[408731099,1774178122936,-235.43724029,0.000116,4]
[408731100,1774178122963,-150.0,0.000116,2]
[408731101,1774178123018,-9229.13551942,0.000116,2]
[408731102,1774178123074,-473.80427948,0.000116,2]
[408731103,1774178123100,-3894.30037543,0.000116,2]
[408731104,1774178123140,-1263.80069018,0.000116,2]
[408731105,1774178140552,9856.37535921,0.00011573,2]
[408731106,1774178166648,143.63464079,0.000116,2]
[408731107,1774178166671,10.36535921,0.000116,2]
[408731108,1774178171175,170.0,0.000116,2]
[408731109,1774178172095,2500.0,0.00011573,2]
[408731110,1774178177432,300.0,0.00011573,2]
[408731111,1774178179337,6468.6265326,0.00011599,2]
[408731112,1774178180408,241.8661,0.00011573,2]
[408731113,1774178214450,309.15200819,0.00011599,2]
[408731114,1774178214471,749.47026235,0.00011599,2]
[408731115,1774178216272,3438.73404374,0.00011599,2]
[408731116,1774178227210,155.0,0.000116,2]
[408731117,1774178266482,2381.8674,0.00011573,2]
[408731118,1774178284845,155.0,0.000116,2]
[408731119,1774178299545,3119.93829391,0.00011599,2]
[408731120,1774178299566,1192.47939449,0.00011599,2]
[408731121,1774178315728,2500.0,0.00011573,2]
[408731122,1774178323229,6307.53060551,0.00011592,2]
[408731123,1774178323250,3215.49961649,0.00011592,2]
[408731124,1774178342231,174.19,0.00011253,2]
[408731125,1774178346527,2292.4893625,0.00011599,2]
[408731126,1774178348797,705.74818036,0.00011599,2]
[408731127,1774178360643,150.81800731,0.00011599,2]
[408731128,1774178360678,3461.26483334,0.00011592,2]
[408731129,1774178360698,10000.01,0.00011592,2]
[408731130,1774178360718,10000.01,0.00011592,2]
[408731131,1774178367118,-2751.24534013,0.00011592,2]
[408731132,1774178367158,-4497.51931974,0.00011592,2]
[408731133,1774178421317,1431.29,0.00010862,2]
[408731134,1774178592178,-3619.5,0.00011485,2]
[408731135,1774178592206,-250.0,0.00011543,2]
[408731136,1774178592234,-300.0,0.00011572,2]
[408731137,1774178592261,-300.0,0.00011572,2]
[408731138,1774178595717,-3236.4853,0.00011573,2]
[408731139,1774178598106,-3527.0394,0.00011573,2]
[408731140,1774178619713,-5000.0,0.00011573,2]
[408731141,1774178621415,-5000.0,0.00011573,2]
[408731142,1774178623121,-5000.0,0.00011573,2]
[408731143,1774178625068,-500.5285,0.00011573,2]
[408731144,1774178625097,-2500.0,0.00011573,2]
[408731145,1774178625119,-297.06564376,0.00011573,2]
[408731146,1774178625142,-1702.40585624,0.00011573,2]
[408731147,1774178625813,-5000.0,0.00011573,2]
[408731148,1774178626207,-1630.24558801,0.00011573,2]
[408731149,1774178626228,-470.49878692,0.00011573,2]
[408731150,1774178626253,-1200.0,0.00011591,2]
[408731151,1774178626274,-1699.25562507,0.00011591,2]
[408731152,1774178626696,-5000.0,0.00011591,2]
[408731153,1774178627281,-1589.34937493,0.00011591,2]
[408731154,1774178627302,-302.546,0.00011591,2]
[408731155,1774178627322,-161.01,0.00011591,2]
[408731156,1774178627343,-2947.09462507,0.00011592,2]
[408731157,1774178628399,-5000.0,0.00011592,2]
[408731158,1774178628478,-5000.0,0.00011592,2]
[408731159,1774178628678,-5000.0,0.00011592,2]
[408731160,1774178629026,-5000.0,0.00011592,2]
[408731161,1774178629729,-5000.0,0.00011592,2]
[408731162,1774178649127,-300.0,0.00011572,2]
[408731163,1774178649171,-150.0,0.00011572,2]
[408731164,1774178649213,-300.0,0.00011572,2]
[408731165,1774178649249,-4250.0,0.00011573,2]
[408731166,1774178650612,-5000.0,0.00011573,2]
[408731167,1774178650672,-5000.0,0.00011573,2]
[408731168,1774178650772,-5000.0,0.00011573,2]
[408731169,1774178650869,-5000.0,0.00011573,2]
[408731170,1774178651283,-5000.0,0.00011573,2]
[408731171,1774178651754,-5000.0,0.00011573,2]
[408731172,1774178652138,-3632.1627,0.00011573,2]
[408731173,1774178652158,-1367.8373,0.00011573,2]
[408731174,1774178652540,-1132.1627,0.00011573,2]
[408731175,1774178652562,-3867.8373,0.00011592,2]
[408731176,1774178653848,-376.15650481,0.00011592,2]
[408731177,1774178653868,-154.0,0.00011592,3]
[408731178,1774178653889,-155.0,0.00011592,3]
[408731179,1774178653914,-1528.32624166,0.00011599,2]
[408731180,1774178653935,-1938.3798,0.00011644,2]
[408731181,1774178653959,-260.96942735,0.00011663,2]
[408731182,1774178653980,-500.0,0.00011665,2]
[408731183,1774178654001,-87.16802618,0.00011666,2]
[408731184,1774178654476,-412.83197382,0.00011666,2]
[408731185,1774178654497,-500.0,0.00011666,2]
[408731186,1774178654524,-500.0,0.00011666,2]
[408731187,1774178654545,-500.0,0.00011666,2]
[408731188,1774178654566,-500.0,0.00011666,2]
[408731189,1774178654588,-500.0,0.00011666,2]
[408731190,1774178654609,-500.0,0.00011666,2]
[408731191,1774178654629,-500.0,0.00011666,2]
[408731192,1774178654650,-500.0,0.00011666,2]
[408731193,1774178654670,-500.0,0.00011666,2]
[408731194,1774178654691,-87.16802618,0.00011666,2]
[408731195,1774178655948,-412.83197382,0.00011666,2]
[408731196,1774178655971,-500.0,0.00011666,2]
[408731197,1774178655992,-500.0,0.00011666,2]
[408731198,1774178656013,-151.0,0.00011666,2]
[408731199,1774178656036,-151.0,0.00011666,2]
[408731200,1774178656056,-151.0,0.00011666,2]
[408731201,1774178656078,-151.0,0.00011666,2]
[408731202,1774178656099,-151.0,0.00011666,2]
[408731203,1774178656120,-151.0,0.00011666,2]
[408731204,1774178656141,-151.0,0.00011666,2]
[408731205,1774178656162,-151.0,0.00011666,2]
[408731206,1774178656185,-500.0,0.00011666,2]
[408731207,1774178656205,-151.0,0.00011666,2]
[408731208,1774178656227,-151.0,0.00011666,2]
[408731209,1774178656249,-500.0,0.00011666,2]
[408731210,1774178656271,-151.0,0.00011666,2]
[408731211,1774178656295,-500.0,0.00011666,2]
[408731212,1774178656317,-151.0,0.00011666,2]
[408731213,1774178656337,-275.16802618,0.00011666,2]
[408731214,1774178657014,-224.83197382,0.00011666,2]
[408731215,1774178657036,-151.0,0.00011666,2]
[408731216,1774178657058,-500.0,0.00011666,2]
[408731217,1774178657081,-151.0,0.00011666,2]
[408731218,1774178657104,-500.0,0.00011666,2]
[408731219,1774178657128,-500.0,0.00011666,2]
[408731220,1774178657151,-500.0,0.00011666,2]
[408731221,1774178657172,-500.0,0.00011666,2]
[408731222,1774178657194,-200.0,0.00011666,2]
[408731223,1774178657216,-500.0,0.00011666,2]
[408731224,1774178657238,-500.0,0.00011666,2]
[408731225,1774178657260,-500.0,0.00011666,2]
[408731226,1774178657281,-273.16802618,0.00011666,2]
[408731227,1774178658040,-226.83197382,0.00011666,2]
[408731228,1774178658064,-500.0,0.00011666,2]
[408731229,1774178658088,-232.10429188,0.00011666,2]
[408731230,1774178658111,-151.0,0.00011666,2]
[408731231,1774178658132,-151.0,0.00011666,2]
[408731232,1774178658154,-151.0,0.00011666,2]
[408731233,1774178658179,-151.0,0.00011666,2]
[408731234,1774178658200,-151.0,0.00011666,2]
[408731235,1774178658222,-151.0,0.00011666,2]
[408731236,1774178658245,-151.0,0.00011666,2]
[408731237,1774178658267,-151.0,0.00011666,2]
[408731238,1774178658288,-151.0,0.00011666,2]
[408731239,1774178658309,-151.0,0.00011666,2]
[408731240,1774178658330,-151.0,0.00011666,2]
[408731241,1774178658352,-151.0,0.00011666,2]
[408731242,1774178658373,-151.0,0.00011666,2]
[408731243,1774178658395,-151.0,0.00011666,2]
[408731244,1774178658417,-151.0,0.00011666,2]
[408731245,1774178658441,-151.0,0.00011666,2]
[408731246,1774178658463,-151.0,0.00011666,2]
[408731247,1774178658485,-151.0,0.00011666,2]
[408731248,1774178658507,-151.0,0.00011666,2]
[408731249,1774178658529,-151.0,0.00011666,2]
[408731250,1774178658554,-517.39,0.00011666,2]
[408731251,1774178658577,-299.99,0.00011666,2]
[408731252,1774178658597,-203.6837343,0.00011666,2]
[408731253,1774178658635,-108.9262657,0.00011666,2]
[408731254,1774178658880,-4891.0737343,0.00011666,2]
[408731255,1774178658948,-5000.0,0.00011666,2]
[408731256,1774178659867,-2174.49929803,0.00011573,2]
[408731257,1774178659889,-2825.50070197,0.00011666,2]
[408731258,1774178665082,-5000.0,0.00011666,2]
[408731259,1774178665606,-5000.0,0.00011666,2]
[408731260,1774178666142,-5000.0,0.00011666,2]
[408731261,1774178666532,-5000.0,0.00011666,2]
[408731262,1774178667128,-5000.0,0.00011666,2]
[408731263,1774178667669,-5000.0,0.00011666,2]
[408731264,1774178673358,-2874.9451256,0.00011573,2]
[408731265,1774178673378,-1907.22556373,0.00011666,2]
[408731266,1774178673399,-217.82931067,0.00011666,2]
[408731267,1774178673789,-5000.0,0.00011666,2]
[408731268,1774178674316,-4615.79068933,0.00011666,2]
[408731269,1774178674336,-384.20931067,0.00011666,2]
[408731270,1774178677088,-5000.0,0.00011666,2]
[408731271,1774178677621,-3966.25068933,0.00011666,2]
[408731272,1774178677642,-1033.74931067,0.00011666,2]
[408731273,1774178678157,-5000.0,0.00011666,2]
[408731274,1774178691451,-2274.6,0.00011507,2]
[408731275,1774178691474,-676.1668,0.00011573,2]
[408731276,1774178691495,-2049.2332,0.00011666,2]
[408731277,1774178692022,-1917.00748933,0.00011666,2]
[408731278,1774178692050,-3082.99251067,0.00011666,2]
[408731279,1774178692299,-5000.0,0.00011666,2]
[408731280,1774178692787,-367.15748933,0.00011666,2]
[408731281,1774178692807,-4632.84251067,0.00011666,2]
[408731282,1774178693174,-5000.0,0.00011666,2]
[408731283,1774178701452,1886.19,0.00011136,2]
[408731284,1774178702226,-300.0,0.00011665,2]
[408731285,1774178702289,-1200.0,0.00011665,2]
[408731286,1774178702325,-300.0,0.00011665,2]
[408731287,1774178702359,-367.14748933,0.00011666,2]
[408731288,1774178702404,-2832.85251067,0.00011666,2]
[408731289,1774178703554,-5000.0,0.00011666,2]
[408731290,1774178703884,-5000.0,0.00011666,2]
[408731291,1774178705187,-5000.0,0.00011666,2]
[408731292,1774178705264,-5000.0,0.00011666,2]
[408731293,1774178705334,-5000.0,0.00011666,2]
[408731294,1774178707480,-5000.0,0.00011666,2]
[408731295,1774178707560,-5000.0,0.00011666,2]
[408731296,1774178708081,-5000.0,0.00011666,2]
[408731297,1774178708452,8113.82,7.945e-05,2]
[408731298,1774178708476,1892.551916,7.945e-05,2]
[408731299,1774178708507,-5000.0,0.00011666,2]
[408731300,1774178709045,-2253.78748933,0.00011666,2]
[408731301,1774178709067,-2746.21251067,0.00011666,2]
[408731302,1774178709558,-5000.0,0.00011666,2]
[408731303,1774178709990,-858.82748933,0.00011666,2]
[408731304,1774178710011,-150.99,0.00011666,2]
[408731305,1774178710033,-300.0,0.00011666,2]
[408731306,1774178710052,-703.872,0.00011666,2]
[408731307,1774178710073,-287.76635892,0.00011666,2]
[408731308,1774178710093,-154.0,0.00011666,3]
[408731309,1774178710113,-154.0,0.00011666,3]
[408731310,1774178710134,-2390.54415175,0.0001167,2]
[408731311,1774178710484,-521.41375939,0.0001167,2]
[408731312,1774178710506,-151.0,0.0001167,2]
[408731313,1774178710527,-151.0,0.0001167,2]
[408731314,1774178710548,-151.0,0.0001167,2]
[408731315,1774178710568,-500.0,0.00011672,2]
[408731316,1774178710589,-500.0,0.00011672,2]
[408731317,1774178710609,-484.64813175,0.00011672,2]
[408731318,1774178710629,-500.0,0.00011672,2]
[408731319,1774178710650,-500.0,0.00011672,2]
[408731320,1774178710674,-500.0,0.00011672,2]
[408731321,1774178710698,-500.0,0.00011672,2]
[408731322,1774178710721,-500.0,0.00011672,2]
[408731323,1774178710744,-40.93810886,0.00011672,2]
[408731324,1774178711719,-500.0,0.00011672,2]
[408731325,1774178711742,-459.06189114,0.00011672,2]
[408731326,1774178711764,-500.0,0.00011672,2]
[408731327,1774178711787,-500.0,0.00011672,2]
[408731328,1774178711810,-500.0,0.00011672,2]
[408731329,1774178711832,-500.0,0.00011672,2]
[408731330,1774178711856,-500.0,0.00011672,2]
[408731331,1774178711880,-500.0,0.00011672,2]
[408731332,1774178711902,-500.0,0.00011672,2]
[408731333,1774178711925,-500.0,0.00011672,2]
[408731334,1774178711948,-40.93810886,0.00011672,2]
[408731335,1774178712261,-459.06189114,0.00011672,2]
[408731336,1774178712286,-500.0,0.00011672,2]
[408731337,1774178712308,-565.20954394,0.00011672,2]
[408731338,1774178712331,-500.0,0.00011672,2]
[408731339,1774178712519,-500.0,0.00011672,2]
[408731340,1774178712543,-500.0,0.00011672,2]
[408731341,1774178712566,-500.0,0.00011672,2]
[408731342,1774178712588,-500.0,0.00011672,2]
[408731343,1774178712616,-500.0,0.00011672,2]
[408731344,1774178712641,-475.72856492,0.00011672,2]
[408731345,1774178712707,-24.27143508,0.00011672,2]
[408731346,1774178712730,-500.0,0.00011672,2]
[408731347,1774178712752,-500.0,0.00011672,2]
[408731348,1774178712776,-500.0,0.00011672,2]
[408731349,1774178712801,-500.0,0.00011672,2]
[408731350,1774178712825,-500.0,0.00011672,2]
[408731351,1774178712848,-500.0,0.00011672,2]
[408731352,1774178712871,-500.0,0.00011672,2]
[408731353,1774178712896,-500.0,0.00011672,2]
[408731354,1774178712920,-500.0,0.00011672,2]
[408731355,1774178712942,-475.72856492,0.00011672,2]
[408731356,1774178713861,-24.27143508,0.00011672,2]
[408731357,1774178713884,-500.0,0.00011672,2]
[408731358,1774178713912,-500.0,0.00011672,2]
[408731359,1774178713936,-500.0,0.00011672,2]
[408731360,1774178713959,-500.0,0.00011672,2]
[408731361,1774178713983,-500.0,0.00011672,2]
[408731362,1774178714009,-500.0,0.00011672,2]
[408731363,1774178714032,-500.0,0.00011672,2]
[408731364,1774178714054,-500.0,0.00011672,2]
[408731365,1774178714077,-500.0,0.00011672,2]
[408731366,1774178714100,-475.72856492,0.00011672,2]
[408731367,1774178714684,-24.27143508,0.00011672,2]
[408731368,1774178714707,-500.0,0.00011672,2]
[408731369,1774178714734,-500.0,0.00011672,2]
[408731370,1774178714757,-236.11499912,0.00011672,2]
[408731371,1774178714780,-612.56021209,0.00011672,2]
[408731372,1774178714804,-612.56021209,0.00011672,2]
[408731373,1774178714827,-612.56021209,0.00011672,2]
[408731374,1774178714850,-612.56021209,0.00011672,2]
[408731375,1774178714873,-612.56021209,0.00011672,2]
[408731376,1774178714899,-612.56021209,0.00011672,2]
[408731377,1774178714923,-64.25229326,0.00011672,2]
[408731378,1774178716141,-548.30791883,0.00011672,2]
[408731379,1774178716187,-612.56021209,0.00011672,2]
[408731380,1774178716229,-612.56021209,0.00011672,2]
[408731381,1774178716270,-612.56021209,0.00011672,2]
[408731382,1774178716327,-612.56021209,0.00011672,2]
[408731383,1774178716371,-165.28049938,0.00011672,2]
[408731384,1774178716412,-315.28049938,0.00011672,2]
[408731385,1774178716451,-500.0,0.00011672,2]
[408731386,1774178716488,-500.0,0.00011672,2]
[408731387,1774178716529,-500.0,0.00011672,2]
[408731388,1774178716572,-20.89023405,0.00011672,2]
[408731389,1774178716810,-479.10976595,0.00011672,2]
[408731390,1774178716844,-500.0,0.00011672,2]
[408731391,1774178716881,-289.85346427,0.00011672,2]
[408731392,1774178716918,-500.0,0.00011672,2]
[408731393,1774178716954,-500.0,0.00011672,2]
[408731394,1774178716992,-500.0,0.00011672,2]
[408731395,1774178717028,-500.0,0.00011672,2]
[408731396,1774178717063,-500.0,0.00011672,2]
[408731397,1774178717101,-500.0,0.00011672,2]
[408731398,1774178717134,-535.03235918,0.00011672,2]
[408731399,1774178717167,-196.0044106,0.00011672,2]
[408731400,1774178717286,-303.9955894,0.00011672,2]
[408731401,1774178717324,-500.0,0.00011672,2]
[408731402,1774178717359,-500.0,0.00011672,2]
[408731403,1774178717390,-500.0,0.00011672,2]
[408731404,1774178717425,-352.10003664,0.00011672,2]
[408731405,1774178717464,-500.0,0.00011672,2]
[408731406,1774178717500,-500.0,0.00011672,2]
[408731407,1774178717533,-500.0,0.00011672,2]
[408731408,1774178717565,-500.0,0.00011672,2]
[408731409,1774178717599,-500.0,0.00011672,2]
[408731410,1774178717630,-215.0194798,0.00011672,2]
[408731411,1774178717683,-128.88489416,0.00011672,2]
[408731412,1774178718099,-371.11510584,0.00011672,2]
[408731413,1774178718119,-500.0,0.00011672,2]
[408731414,1774178718139,-500.0,0.00011672,2]
[408731415,1774178718160,-500.0,0.00011672,2]
[408731416,1774178718180,-500.0,0.00011672,2]
[408731417,1774178718200,-500.0,0.00011672,2]
[408731418,1774178718221,-500.0,0.00011672,2]
[408731419,1774178718245,-526.44641265,0.00011672,2]
[408731420,1774178718266,-617.76045527,0.00011672,2]
[408731421,1774178718286,-150.0,0.00011672,2]
[408731422,1774178718311,-150.0,0.00011672,2]
[408731423,1774178718335,-150.0,0.00011672,2]
[408731424,1774178718358,-34.67802624,0.00011672,2]
[408731425,1774178718535,-115.32197376,0.00011672,2]
[408731426,1774178718557,-150.0,0.00011672,2]
[408731427,1774178718578,-150.0,0.00011672,2]
[408731428,1774178718599,-841.139999,0.00011672,2]
[408731429,1774178718621,-155.0,0.00011672,2]
[408731430,1774178718641,-1239.92084832,0.00011672,3]
[408731431,1774178718662,-1239.92084832,0.00011672,3]
[408731432,1774178718683,-1108.6963306,0.00011672,3]
[408731433,1774178718817,-131.22451771,0.00011672,3]
[408731434,1774178718840,-4868.77548229,0.00011673,2]
[408731435,1774178718931,-5000.0,0.00011673,2]
[408731436,1774178719054,-5000.0,0.00011673,2]
[408731437,1774178719486,-5000.0,0.00011666,2]
[408731438,1774178719905,-5000.0,0.00011666,2]
[408731439,1774178720429,-38.27838405,0.00011666,2]
[408731440,1774178720454,-3602.50985198,0.00011666,2]
[408731441,1774178720475,-1359.21176397,0.00011673,2]
[408731442,1774178720788,-234.87,0.00011411,2]
[408731443,1774178720811,-4765.13,0.00011673,2]
[408731444,1774178722770,-5000.0,0.00011673,2]
[408731445,1774178724450,-5000.0,0.00011673,2]
[408731446,1774178726036,-150.0,0.00011672,2]
[408731447,1774178726061,-4850.0,0.00011673,2]
[408731448,1774178727533,-5000.0,0.00011673,2]
[408731449,1774178853632,4475.75772242,0.000114,2]
[408731450,1774178864815,1834.45,0.00010956,2]
[408731451,1774178881534,3688.1,0.0001088,2]
[408731454,1774178922239,1.70227758,0.00010855,2]
[408731455,1774178922260,1850.71772242,0.00010855,2]
[408731456,1774178942078,8149.29227758,9.5e-05,3]
[408731457,1774178942107,33737.25435045,9.5e-05,3]
[408731458,1774178951165,-8709.36028132,9.5e-05,3]
[408731459,1774178951245,-10000.01,9.5e-05,3]
[408731460,1774178951339,-10000.01,9.5e-05,3]
[408731461,1774178951442,-10000.01,9.5e-05,3]
[408731462,1774178957310,-10000.01,9.5e-05,3]
[408731463,1774178957413,-10000.01,9.5e-05,3]
[408731464,1774178957529,-10000.01,9.5e-05,3]
[408731465,1774178957650,-10000.01,9.5e-05,3]
[408731466,1774179022808,-2935.82229098,9.5e-05,3]
[408731478,1774179032231,-154.0,9.5e-05,3]
[408731479,1774179032241,-155.0,9.5e-05,3]
[408731480,1774179032250,-300.0,0.00010399,2]
[408731481,1774179032260,-200.0,0.000104,2]
[408731482,1774179032269,-256.0,0.000104,2]
[408731483,1774179032278,-5000.0,0.0001045,2]
[408731484,1774179032288,-250.0,0.0001045,2]
[408731485,1774179032298,-1483.69,0.00010725,2]
[408731486,1774179032307,-166.66,0.00011004,2]
[408731487,1774179032316,-166.66,0.00011367,2]
[408731488,1774179032326,-420.0,0.00011434,2]
[408731489,1774179032335,-500.0,0.00011443,2]
[408731491,1774179032344,-303.28849393,0.00011466,2]
[408731493,1774179032353,-600.0,0.000115,4]
[408731495,1774179032362,-200.0,0.000115,2]
[408731497,1774179032371,-300.0,0.00011563,2]
[408731499,1774179032380,-1200.0,0.00011563,2]
[408731501,1774179032389,-1200.0,0.00011564,2]
[408731503,1774179032398,-150.0,0.00011564,2]
[408731505,1774179032407,-250.0,0.00011565,2]
[408731507,1774179032417,-33890.05,0.00011565,2]
[408731509,1774179032426,-2500.0,0.00011573,2]
[408731511,1774179032435,-28767.79602271,0.00011573,2]
[408731513,1774179032444,-30806.20087575,0.00011573,2]
[408731515,1774179032453,-198.0437625,0.00011573,2]
[408731517,1774179032463,-7318.60737377,0.00011573,2]
[408731519,1774179032472,-150.81800731,0.000116,2]
[408731521,1774179032481,-1200.0,0.000116,4]
[408731523,1774179032490,-2895.61,0.00011644,2]
[408731525,1774179032499,-500.0,0.00011665,2]
[408731527,1774179032508,-500.0,0.00011666,2]
[408731529,1774179032517,-500.0,0.00011666,2]
[408731531,1774179032527,-500.0,0.00011666,2]
[408731533,1774179032540,-500.0,0.00011666,2]
[408731535,1774179032549,-500.0,0.00011666,2]
[408731537,1774179032558,-500.0,0.00011666,2]
[408731539,1774179032566,-500.0,0.00011666,2]
[408731541,1774179032577,-500.0,0.00011666,2]
[408731543,1774179032586,-500.0,0.00011666,2]
[408731545,1774179032595,-500.0,0.00011666,2]
[408731547,1774179032608,-500.0,0.00011666,2]
[408731549,1774179032618,-500.0,0.00011666,2]
[408731551,1774179032628,-500.0,0.00011666,2]
[408731553,1774179032638,-151.0,0.00011666,2]
[408731555,1774179032647,-200.0,0.00011666,2]
[408731557,1774179032657,-500.0,0.00011666,2]
[408731559,1774179032666,-151.0,0.00011666,2]
[408731560,1774179032675,-151.0,0.00011666,2]
[408731562,1774179032684,-151.0,0.00011666,2]
[408731563,1774179032694,-151.0,0.00011666,2]
[408731564,1774179032703,-151.0,0.00011666,2]
[408731565,1774179032712,-151.0,0.00011666,2]
[408731566,1774179032721,-151.0,0.00011666,2]
[408731567,1774179032730,-500.0,0.00011666,2]
[408731568,1774179032739,-151.0,0.00011666,2]
[408731569,1774179032748,-151.0,0.00011666,2]
[408731570,1774179032758,-500.0,0.00011666,2]
[408731571,1774179032768,-151.0,0.00011666,2]
[408731572,1774179032777,-151.0,0.00011666,2]
[408731573,1774179032787,-500.0,0.00011666,2]
[408731574,1774179032796,-151.0,0.00011666,2]
[408731575,1774179032806,-151.0,0.00011666,2]
[408731576,1774179032815,-500.0,0.00011666,2]
[408731577,1774179032824,-151.0,0.00011666,2]
[408731578,1774179032833,-151.0,0.00011666,2]
[408731579,1774179032843,-500.0,0.00011666,2]
[408731580,1774179032853,-151.0,0.00011666,2]
[408731581,1774179032863,-151.0,0.00011666,2]
[408731582,1774179032872,-500.0,0.00011666,2]
[408731583,1774179032882,-151.0,0.00011666,2]
[408731584,1774179032891,-151.0,0.00011666,2]
[408731585,1774179032901,-500.0,0.00011666,2]
[408731586,1774179032910,-151.0,0.00011666,2]
[408731587,1774179032919,-151.0,0.00011666,2]
[408731588,1774179032928,-500.0,0.00011666,2]
[408731589,1774179032938,-151.0,0.00011666,2]
[408731590,1774179032947,-500.0,0.00011666,2]
[408731591,1774179032956,-151.0,0.00011666,2]
[408731592,1774179032966,-500.0,0.00011666,2]
[408731593,1774179032975,-151.0,0.00011666,2]
[408731594,1774179032984,-500.0,0.00011666,2]
[408731595,1774179032993,-151.0,0.00011666,2]
[408731596,1774179033003,-500.0,0.00011666,2]
[408731597,1774179033014,-151.0,0.00011666,2]
[408731598,1774179033023,-500.0,0.00011666,2]
[408731599,1774179033032,-151.0,0.00011666,2]
[408731600,1774179033041,-151.0,0.00011666,2]
[408731601,1774179033051,-151.0,0.00011666,2]
[408731602,1774179033060,-151.0,0.00011666,2]
[408731603,1774179033070,-151.0,0.00011666,2]
[408731604,1774179033079,-151.0,0.00011666,2]
[408731605,1774179033089,-151.0,0.00011666,2]
[408731606,1774179033098,-547.84430728,0.0001167,2]
[408731607,1774179033107,-547.84430728,0.0001167,2]
[408731608,1774179033117,-547.84430728,0.0001167,2]
[408731609,1774179033126,-547.84430728,0.0001167,2]
[408731610,1774179033135,-547.84430728,0.0001167,2]
[408731611,1774179033145,-547.84430728,0.0001167,2]
[408731612,1774179033154,-547.84430728,0.0001167,2]
[408731613,1774179033164,-547.84430728,0.0001167,2]
[408731614,1774179033174,-547.84430728,0.0001167,2]
[408731615,1774179033183,-547.84430728,0.0001167,2]
[408731616,1774179033193,-547.84430728,0.0001167,2]
[408731617,1774179033202,-547.84430728,0.0001167,2]
[408731618,1774179033211,-547.84430728,0.0001167,2]
[408731619,1774179033221,-547.84430728,0.0001167,2]
[408731620,1774179033230,-547.84430728,0.0001167,2]
[408731621,1774179033239,-547.84430728,0.0001167,2]
[408731622,1774179033248,-547.84430728,0.0001167,2]
[408731623,1774179033259,-547.84430728,0.0001167,2]
[408731624,1774179033268,-547.84430728,0.0001167,2]
[408731625,1774179033278,-547.84430728,0.0001167,2]
[408731626,1774179033287,-547.84430728,0.0001167,2]
[408731627,1774179033296,-547.84430728,0.0001167,2]
[408731628,1774179033305,-547.84430728,0.0001167,2]
[408731629,1774179033314,-547.84430728,0.0001167,2]
[408731630,1774179033323,-547.84430728,0.0001167,2]
[408731631,1774179033332,-547.84430728,0.0001167,2]
[408731632,1774179033342,-547.84430728,0.0001167,2]
[408731633,1774179033352,-547.84430728,0.0001167,2]
[408731634,1774179033365,-547.84430728,0.0001167,2]
[408731635,1774179033375,-547.84430728,0.0001167,2]
[408731636,1774179033385,-547.84430728,0.0001167,2]
[408731637,1774179033394,-547.84430728,0.0001167,2]
[408731638,1774179033404,-547.84430728,0.0001167,2]
[408731639,1774179033414,-547.84430728,0.0001167,2]
[408731640,1774179033423,-547.84430728,0.0001167,2]